fUSD/lending_fUSD_20240502
["ID","MTS","AMOUNT","RATE_DAILY","PERIOD"]
[325244271,1714631441004,-2500.0,0.00012999,2]
[325244273,1714631441013,-2500.0,0.00012999,2]
[325244275,1714631441023,-2500.0,0.00012999,2]
[325244277,1714631441033,-2500.0,0.00012999,2]
[325244280,1714631441044,-579.0,0.00013,2]
[325244282,1714631441052,-1410825.35818557,0.00013,2]
[325244283,1714631441062,-1219187.85398298,0.00013,2]
[325244286,1714631441072,-279397.82661302,0.00013,2]
[325244310,1714631441263,-216940.51160458,0.00013,2]
[325244315,1714631441337,-796.64880332,0.00013,2]
[325244317,1714631441349,-3471.50713341,0.00013,2]
[325244403,1714631446543,-209.84557515,0.00012999,2]
[325244404,1714631446552,-10790.46282121,0.00013,2]
[325244405,1714631446564,-12013.34711847,0.00013,2]
[325244406,1714631446575,-1436.52759672,0.00013,2]
[325244407,1714631446720,-273.77749137,0.00013,2]
[325244408,1714631446741,-289.27440355,0.00013,2]
[325244409,1714632122823,150.0,0.00010993,2]
[325244546,1714632631806,-952.35,0.00011822,3]
[325244547,1714632631816,-155.0,0.00011846,2]
[325244548,1714632631826,-150.0,0.00011847,2]
[325244549,1714632631836,-1000.0,0.00011852,2]
[325244550,1714632631846,-5210.91464732,0.00011853,2]
[325244551,1714632631856,-884.10095618,0.0001187,2]
[325244552,1714632631865,-262.4,0.00011883,2]
[325244553,1714632631874,-250.0,0.0001196,2]
[325244554,1714632631883,-150.81,0.00012107,2]
[325244555,1714632631892,-250.0,0.00012143,2]
[325244556,1714632631902,-737.6,0.00012218,2]
[325244557,1714632631911,-181.75,0.00012256,2]
[325244558,1714632631920,-752.01,0.000127,2]
[325244560,1714632631929,-394.81,0.000127,2]
[325244562,1714632631938,-423.25,0.00012719,2]
[325244564,1714632631947,-150.0,0.00012719,2]
[325244566,1714632631956,-150.0,0.00012719,2]
[325244568,1714632631965,-150.0,0.0001276,2]
[325244570,1714632631975,-499.99,0.00012773,2]
[325244571,1714632631984,-155.0,0.00012798,2]
[325244572,1714632631994,-546.05317817,0.00012799,2]
[325244573,1714632632003,-408.81148644,0.00012799,2]
[325244574,1714632632014,-150.0,0.000128,2]
[325244575,1714632632023,-419.48,0.000128,2]
[325244576,1714632632033,-268.88,0.000128,2]
[325244578,1714632632042,-2652.28973187,0.000128,2]
[325244580,1714632632055,-4168.1130119,0.000128,2]
[325244582,1714632632067,-6687.54697176,0.000128,2]
[325244586,1714632632176,-852.94314479,0.000128,2]
[325244587,1714632632188,-4048.13730011,0.000128,2]
[325244644,1714632640115,-260.52978751,0.000128,2]
[325244664,1714632642937,-12566.94051978,0.000128,2]
[325244665,1714632642949,-5391.64514582,0.000128,2]
[325244666,1714632643160,-5445.29225086,0.000128,2]
[325244667,1714632643174,-319.82737186,0.000128,2]
[325244670,1714632645803,-2997.01496871,0.00012799,2]
[325244671,1714632645813,-25811.64992663,0.000128,2]
[325244672,1714632645823,-300.0,0.000128,2]
[325244675,1714632646079,-9181.9896033,0.0001284,2]
[325244676,1714632646107,-171.02362411,0.00012869,2]
[325244677,1714632646117,-1520.20717335,0.00012872,2]
[325244678,1714632646154,-691.164,0.00012872,2]
[325244707,1714633831967,-155.0,0.00011738,2]
[325244708,1714633831976,-155.0,0.00011739,2]
[325244709,1714633831986,-159.63521555,0.00011743,2]
[325244710,1714633831998,-1640.36478445,0.00011743,2]
[325244711,1714633832007,-250.0,0.00011744,2]
[325244712,1714633832017,-250.0,0.00011788,2]
[325244713,1714633832026,-250.0,0.00011834,2]
[325244714,1714633832035,-172.06,0.00011893,2]
[325244715,1714633832043,-1000.0,0.00011934,2]
[325244716,1714633832053,-155.25,0.00011984,2]
[325244717,1714633832062,-155.25,0.00012192,2]
[325244718,1714633832070,-227.94,0.00012246,2]
[325244719,1714633832079,-910.75,0.000124,2]
[325244720,1714633832088,-414.28,0.000124,2]
[325244721,1714633832098,-235.18,0.000124,2]
[325244722,1714633832107,-1820.91,0.000124,2]
[325244723,1714633832116,-414.28,0.000124,2]
[325244724,1714633832125,-414.28,0.000124,2]
[325244725,1714633832136,-414.28,0.000124,2]
[325244726,1714633832144,-545.8,0.000124,2]
[325244727,1714633832153,-155.25,0.00012401,2]
[325244728,1714633832162,-2227.16346115,0.0001243,2]
[325244729,1714633832173,-341.48088377,0.0001243,2]
[325244730,1714633832184,-928.55510113,0.0001243,2]
[325244731,1714633832193,-911.44,0.00012441,2]
[325244732,1714633832203,-911.44,0.00012441,2]
[325244733,1714633832211,-414.28,0.00012441,2]
[325244734,1714633832221,-419.52,0.000125,2]
[325244735,1714633832231,-150.0,0.000125,2]
[325244736,1714633832240,-414.28,0.000125,2]
[325244737,1714633832249,-911.44,0.000125,2]
[325244738,1714633832258,-921.79,0.00012521,2]
[325244739,1714633832267,-300.59,0.00012578,2]
[325244740,1714633832276,-303.37,0.00012578,2]
[325244742,1714633832285,-325.49,0.00012578,2]
[325244743,1714633832294,-300.0,0.00012578,2]
[325244744,1714633832303,-1560.03868352,0.00012584,2]
[325244745,1714633832313,-155.25,0.00012609,2]
[325244746,1714633832322,-419.52,0.000127,2]
[325244747,1714633832332,-164.51,0.000127,2]
[325244748,1714633832341,-1000.0,0.00012768,2]
[325244749,1714633832350,-500.0,0.00012768,2]
[325244750,1714633832359,-372.39692182,0.00012769,2]
[325244752,1714633832393,-505.38615579,0.00012769,2]
[325244753,1714633832405,-122.21692239,0.00012769,2]
[325244754,1714633832415,-500.0,0.00012769,2]
[325244755,1714633832424,-337.72,0.000128,2]
[325244756,1714633832434,-303.7,0.000128,2]
[325244757,1714633832443,-27.26617095,0.000128,2]
[325244758,1714633832459,-253.92241788,0.000128,2]
[325244759,1714633832471,-133.09141117,0.000128,2]
[325244760,1714633832479,-175.71601283,0.00012872,2]
[325244761,1714633832491,-24.28398717,0.00012872,2]
[325244762,1714633832500,-429.37823326,0.00012872,2]
[325244763,1714633832533,-643.59914021,0.00012872,2]
[325244764,1714633832545,-122.02434653,0.00012872,2]
[325244765,1714633832555,-800.0,0.00012877,2]
[325244766,1714633832564,-93.80738912,0.00012887,2]
[325244767,1714633832576,-137.34962232,0.00012887,2]
[325244768,1714633832585,-231.15701144,0.00012887,2]
[325244769,1714633832595,-231.15701144,0.0001289,2]
[325244770,1714633832603,-231.15701144,0.0001289,2]
[325244771,1714633832612,-2.97727652,0.0001289,2]
[325244772,1714633832624,-228.17973492,0.0001289,2]
[325244773,1714633832634,-90.68716494,0.0001289,2]
[325244774,1714633832646,-140.4698465,0.0001289,2]
[325244775,1714633832655,-231.15701144,0.0001289,2]
[325244776,1714633832664,-231.15701144,0.0001289,2]
[325244777,1714633832673,-56.68613062,0.0001289,2]
[325244778,1714633832684,-174.47088082,0.0001289,2]
[325244779,1714633832694,-231.15701144,0.0001289,2]
[325244780,1714633832703,-231.15701144,0.0001289,2]
[325244781,1714633832712,-231.15701144,0.0001289,2]
[325244782,1714633832722,-231.15701144,0.0001289,2]
[325244783,1714633832731,-231.15701144,0.0001289,2]
[325244784,1714633832740,-231.15701144,0.0001289,2]
[325244785,1714633832750,-231.15701144,0.0001289,2]
[325244786,1714633832760,-7.4300391,0.0001289,2]
[325244787,1714633832772,-223.72697234,0.0001289,2]
[325244788,1714633832781,-75.93807485,0.0001289,2]
[325244789,1714633832797,-155.21893659,0.0001289,2]
[325244790,1714633832807,-231.15701144,0.0001289,2]
[325244791,1714633832816,-231.15701144,0.0001289,2]
[325244792,1714633832826,-231.15701144,0.0001289,2]
[325244793,1714633832835,-231.15701144,0.0001289,2]
[325244794,1714633832844,-231.15701144,0.0001289,2]
[325244795,1714633832854,-231.15701144,0.0001289,2]
[325244796,1714633832863,-231.15701144,0.0001289,2]
[325244797,1714633832872,-231.15701144,0.0001289,2]
[325244798,1714633832882,-231.15701144,0.0001289,2]
[325244799,1714633832893,-7622.99758053,0.00012897,2]
[325244809,1714633838101,-3646.45277639,0.00012897,2]
[325244814,1714633838226,-7076.96488765,0.00012897,2]
[325244823,1714633838334,-33973.38691255,0.00012897,2]
[325244833,1714633838480,-20815.9729585,0.00012897,2]
[325244838,1714633840334,-668.87821,0.00012897,2]
[325244839,1714633840346,-622.59343384,0.00012897,2]
[325244840,1714633840359,-251.87994341,0.00012897,2]
[325244841,1714633840369,-63.72005659,0.000129,3]
[325244842,1714633840381,-1905.14387475,0.000129,3]
[325244843,1714633840497,-667.25764987,0.000129,3]
[325244844,1714633840509,-515.1,0.000129,3]
[325244845,1714633840521,-355.72425126,0.000129,3]
[325244846,1714633840532,-1007.37460738,0.000129,3]
[325244847,1714633840544,-225.67956015,0.000129,3]
[325244848,1714633840553,-310.89541865,0.000129,2]
[325244849,1714633840565,-1256.30845901,0.000129,2]
[325244882,1714633843403,-449.13993161,0.000129,2]
[325244883,1714633843417,-1381.05676272,0.000129,2]
[325244884,1714633843438,-1665.12108742,0.000129,2]
[325244885,1714633843450,-2417.52263657,0.000129,2]
[325244886,1714633843465,-3714.40425425,0.000129,2]
[325244887,1714633843474,-7106.12255858,0.000129,2]
[325244888,1714633843611,-2893.87744142,0.000129,2]
[325244889,1714633843620,-89.33293098,0.000129,2]
[325244900,1714633846470,-1000.0,0.000129,2]
[325244901,1714633846550,-5817.38966902,0.000129,2]
[325244902,1714633846559,-1647.351,0.000129,2]
[325244903,1714633846568,-177.18201028,0.000129,2]
[325244904,1714633846578,-156.20020624,0.000129,2]
[325244905,1714633846587,-207.84993547,0.000129,2]
[325244906,1714633846596,-525.88557675,0.000129,2]
[325244907,1714633846606,-1693.41236612,0.000129,2]
[325244908,1714633846615,-226.21781976,0.000129,2]
[325244909,1714633846625,-308.44913284,0.000129,2]
[325244910,1714633846635,-231.15701144,0.00012949,2]
[325244911,1714633846644,-203.57008486,0.00012959,2]
[325244912,1714633846814,-596.42991514,0.00012959,2]
[325244913,1714633846824,-3367.13719211,0.00012972,2]
[325244914,1714633846833,-231.15701144,0.00012988,2]
[325244915,1714633846843,-231.15701144,0.00012989,2]
[325244916,1714633846852,-231.15701144,0.00012989,2]
[325244917,1714633846861,-231.15701144,0.00012989,2]
[325244918,1714633846871,-231.15701144,0.00012989,2]
[325244919,1714633846880,-231.15701144,0.00012989,2]
[325244920,1714633846889,-231.15701144,0.00012989,2]
[325244921,1714633846901,-231.15701144,0.00012989,2]
[325244922,1714633846910,-231.15701144,0.00012989,2]
[325244923,1714633846919,-231.15701144,0.00012989,2]
[325244924,1714633846928,-231.15701144,0.00012989,2]
[325244925,1714633846937,-231.15701144,0.00012989,2]
[325244926,1714633846946,-231.15701144,0.00012989,2]
[325244927,1714633846955,-231.15701144,0.00012989,2]
[325244928,1714633846964,-231.15701144,0.00012989,2]
[325244929,1714633846973,-231.15701144,0.00012989,2]
[325244930,1714633846983,-231.15701144,0.00012989,2]
[325244931,1714633846991,-231.15701144,0.00012989,2]
[325244932,1714633847000,-231.15701144,0.0001299,2]
[325244933,1714633847010,-231.15701144,0.0001299,2]
[325244934,1714633847019,-231.15701144,0.0001299,2]
[325244935,1714633847029,-231.15701144,0.0001299,2]
[325244936,1714633847038,-231.15701144,0.0001299,2]
[325244937,1714633847047,-231.15701144,0.0001299,2]
[325244938,1714633847056,-231.15701144,0.0001299,2]
[325244939,1714633847065,-231.15701144,0.0001299,2]
[325244940,1714633847074,-231.15701144,0.0001299,2]
[325244941,1714633847083,-231.15701144,0.0001299,2]
[325244942,1714633847092,-231.15701144,0.0001299,2]
[325244943,1714633847101,-231.15701144,0.0001299,2]
[325244944,1714633847110,-231.15701144,0.0001299,2]
[325244945,1714633847120,-231.15701144,0.0001299,2]
[325244946,1714633847129,-231.15701144,0.0001299,2]
[325244947,1714633847138,-231.15701144,0.0001299,2]
[325244948,1714633847149,-231.15701144,0.0001299,2]
[325244949,1714633847159,-231.15701144,0.0001299,2]
[325244950,1714633847168,-231.15701144,0.0001299,2]
[325244951,1714633847177,-231.15701144,0.0001299,2]
[325244952,1714633847186,-231.15701144,0.0001299,2]
[325244953,1714633847195,-231.15701144,0.0001299,2]
[325244954,1714633847204,-231.15701144,0.0001299,2]
[325244955,1714633847213,-231.15701144,0.0001299,2]
[325244956,1714633847223,-231.15701144,0.0001299,2]
[325244957,1714633847232,-231.15701144,0.0001299,2]
[325244958,1714633847450,-231.15701144,0.0001299,2]
[325244959,1714633847477,-231.15701144,0.0001299,2]
[325244960,1714633847486,-231.15701144,0.0001299,2]
[325244961,1714633847496,-231.15701144,0.0001299,2]
[325244962,1714633847505,-231.15701144,0.0001299,2]
[325244963,1714633847517,-231.15701144,0.0001299,2]
[325244964,1714633847526,-231.15701144,0.0001299,2]
[325244965,1714633847535,-231.15701144,0.0001299,2]
[325244966,1714633847544,-231.15701144,0.0001299,2]
[325244967,1714633847554,-231.15701144,0.0001299,2]
[325244968,1714633847563,-231.15701144,0.0001299,2]
[325244969,1714633847572,-231.15701144,0.0001299,2]
[325244970,1714633847583,-231.15701144,0.0001299,2]
[325244971,1714633847592,-231.15701144,0.0001299,2]
[325244972,1714633847602,-231.15701144,0.0001299,2]
[325244973,1714633847611,-231.15701144,0.0001299,2]
[325244974,1714633847620,-231.15701144,0.0001299,2]
[325244975,1714633847629,-231.15701144,0.0001299,2]
[325244976,1714633847638,-231.15701144,0.0001299,2]
[325244977,1714633847648,-231.15701144,0.0001299,2]
[325244978,1714633847657,-231.15701144,0.0001299,2]
[325244979,1714633847666,-231.15701144,0.0001299,2]
[325244980,1714633847676,-231.15701144,0.0001299,2]
[325244981,1714633847685,-231.15701144,0.0001299,2]
[325244982,1714633847694,-231.15701144,0.0001299,2]
[325244983,1714633847703,-231.15701144,0.0001299,2]
[325244984,1714633847713,-231.15701144,0.0001299,2]
[325244985,1714633847722,-231.15701144,0.0001299,2]
[325244986,1714633847731,-1280.19703518,0.00012998,2]
[325244987,1714633847740,-194.53284169,0.00012998,2]
[325244988,1714633847749,-203.77182177,0.00012998,2]
[325244989,1714633847760,-170.00785607,0.00012998,2]
[325244990,1714633847769,-350.16861856,0.00012999,2]
[325244991,1714633847779,-13070.22000281,0.00012999,2]
[325244992,1714633847788,-145.57327999,0.00012999,2]
[325244993,1714633847802,-1457.04350787,0.00012999,2]
[325244994,1714633847814,-897.38321214,0.00012999,2]
[325244995,1714633847823,-2500.0,0.00012999,2]
[325244996,1714633847833,-2500.0,0.00012999,2]
[325244997,1714633847842,-2500.0,0.00012999,2]
[325244998,1714633847851,-2500.0,0.00012999,2]
[325244999,1714633847861,-519.0,0.00013,2]
[325245000,1714633847871,-2569.86192832,0.00013,2]
[325245001,1714633847882,-663.799999,0.00013,2]
[325245002,1714633847958,-4443.3561744,0.00013,2]
[325245025,1714634551228,2019.0,0.0001,2]
[325245027,1714634743699,559.28533895,0.00025,120]
[325245032,1714634846300,400.0,0.00011,2]
[325245038,1714635032215,-405.12132937,0.00011163,2]
[325245039,1714635032225,-155.0,0.00011164,2]
[325245040,1714635032234,-1200.0,0.00011164,2]
[325245041,1714635032243,-155.0,0.00011165,2]
[325245042,1714635032252,-4291.07867063,0.0001117,2]
[325245043,1714635032264,-15166.18621704,0.0001117,2]
[325245044,1714635032275,-192.17383712,0.00011173,2]
[325245045,1714635032284,-250.0,0.00011274,2]
[325245046,1714635032293,-1000.0,0.00011281,2]
[325245047,1714635032302,-150.0,0.00011286,2]
[325245048,1714635032311,-250.0,0.00011287,2]
[325245049,1714635032320,-500.0,0.00011301,2]
[325245050,1714635032330,-499.99,0.00011301,2]
[325245051,1714635032339,-8219.77,0.00011309,2]
[325245052,1714635032347,-7259.16,0.0001135,2]
[325245053,1714635032356,-250.0,0.0001135,2]
[325245054,1714635032365,-472.76,0.00011362,2]
[325245055,1714635032375,-472.76,0.00011393,2]
[325245056,1714635032384,-472.76,0.00011425,2]
[325245057,1714635032393,-472.76,0.00011456,2]
[325245058,1714635032403,-472.76,0.00011487,2]
[325245059,1714635032411,-472.76,0.00011518,2]
[325245060,1714635032421,-2657.1261,0.00011544,2]
[325245061,1714635032430,-472.76,0.00011549,2]
[325245062,1714635032439,-472.76,0.0001158,2]
[325245063,1714635032448,-472.76,0.00011611,2]
[325245064,1714635032458,-472.76,0.00011643,2]
[325245065,1714635032467,-472.76,0.00011674,2]
[325245066,1714635032476,-170.36,0.00011682,2]
[325245067,1714635032485,-299.99,0.00011682,2]
[325245068,1714635032495,-911.32,0.000117,2]
[325245069,1714635032504,-472.76,0.00011705,2]
[325245070,1714635032513,-472.76,0.00011736,2]
[325245071,1714635032523,-472.76,0.00011767,2]
[325245073,1714635032532,-165.64,0.00011782,2]
[325245075,1714635032541,-472.76,0.00011798,2]
[325245077,1714635032550,-165.64,0.00011801,2]
[325245079,1714635032561,-165.64,0.00011821,2]
[325245081,1714635032571,-472.76,0.00011829,2]
[325245083,1714635032580,-182.35,0.00011841,2]
[325245085,1714635032589,-165.64,0.00011841,2]
[325245087,1714635032600,-472.76,0.00011861,2]
[325245089,1714635032609,-472.76,0.00011892,2]
[325245091,1714635032618,-472.76,0.00011923,2]
[325245093,1714635032628,-472.76,0.00011954,2]
[325245095,1714635032637,-686.41537,0.00012,2]
[325245097,1714635032647,-200.0,0.00012062,2]
[325245099,1714635032656,-908.76,0.000123,2]
[325245101,1714635032666,-162.99,0.00012378,2]
[325245105,1714635032675,-350.77,0.00012378,2]
[325245106,1714635032685,-350.77,0.00012378,2]
[325245109,1714635032694,-162.99,0.00012378,2]
[325245112,1714635032704,-350.77,0.00012378,2]
[325245114,1714635032713,-162.99,0.00012378,2]
[325245116,1714635032722,-350.77,0.00012378,2]
[325245118,1714635032731,-162.99,0.00012378,2]
[325245120,1714635032742,-162.99,0.00012378,2]
[325245121,1714635032754,-350.19,0.00012378,2]
[325245122,1714635032763,-166.86,0.00012562,2]
[325245123,1714635032772,-1510.29330437,0.000126,4]
[325245124,1714635032782,-1000.0,0.00012691,2]
[325245125,1714635032794,-3497.19944605,0.00012697,2]
[325245126,1714635032804,-1560.03868352,0.00012716,2]
[325245127,1714635032815,-251.79891757,0.00012868,2]
[325245128,1714635032826,-1495.83477,0.0001287,2]
[325245129,1714635032836,-1542.71170994,0.00012872,2]
[325245130,1714635032848,-28596.3113,0.0001289,2]
[325245131,1714635032859,-1207.3491801,0.00012893,2]
[325245132,1714635032869,-10261.57783772,0.000129,2]
[325245133,1714635032878,-10000.0,0.000129,2]
[325245134,1714635032887,-150.81187984,0.000129,2]
[325245135,1714635032897,-1481.73582039,0.000129,2]
[325245136,1714635032906,-207.84993546,0.000129,2]
[325245137,1714635032915,-350.5903845,0.000129,2]
[325245138,1714635032925,-150.0,0.00012925,2]
[325245139,1714635032934,-266.21815433,0.00012978,2]
[325245140,1714635032943,-370.28017895,0.00012978,2]
[325245141,1714635032952,-194.53284169,0.00012979,2]
[325245142,1714635032962,-349.01427765,0.00012979,2]
[325245143,1714635032972,-187675.66127492,0.0001298,2]
[325245144,1714635032981,-156.85073161,0.0001299,2]
[325245145,1714635032990,-162.24495503,0.00012997,2]
[325245146,1714635033000,-597.2279121,0.00012998,2]
[325245147,1714635033010,-348.52068398,0.00012999,2]
[325245148,1714635033019,-41644.97764588,0.00012999,2]
[325245149,1714635033067,-6198.26527444,0.00012999,2]
[325245150,1714635033078,-194805.34150573,0.00012999,2]
[325245151,1714635033087,-517.55,0.00012999,2]
[325245152,1714635033096,-2500.0,0.00012999,2]
[325245153,1714635033106,-1625.81856964,0.00012999,2]
[325245154,1714635033115,-133919.68081574,0.00013,2]
[325245155,1714635033126,-1629.76586371,0.00013,2]
[325245156,1714635033138,-393.9,0.00013,2]
[325245157,1714635033170,-10569.72992466,0.00013,2]
[325245158,1714635033181,-2001.76069057,0.00013,2]
[325245159,1714635033192,-3571.38471019,0.00013,2]
[325245160,1714635033203,-2288.564954,0.00013,2]
[325245161,1714635033215,-4799.4,0.00013,2]
[325245162,1714635033226,-2592.57686519,0.00013,2]
[325245172,1714635038325,-29919.00000005,0.00013,2]
[325245173,1714635038336,-3285.175,0.00013,2]
[325245174,1714635038347,-14234.99887379,0.00013,2]
[325245175,1714635038359,-250.88068151,0.00013,2]
[325245176,1714635038468,-4209.742,0.00013,2]
[325245177,1714635038480,-1614.2,0.00013,2]
[325245178,1714635038556,-289.4838,0.00013,2]
[325245179,1714635038568,-6775.96856293,0.00013,2]
[325245180,1714635038581,-7103.53077201,0.00013,2]
[325245181,1714635038592,-583.79141724,0.00013,2]
[325245193,1714635040787,-19984.96028322,0.00013,2]
[325245194,1714635040801,-683.33006705,0.00013,2]
[325245195,1714635040812,-880.188012,0.00013,2]
[325245196,1714635040826,-455.34,0.00013,2]
[325245198,1714635040872,-6550.58244479,0.00013,2]
[325245199,1714635040883,-9142.38341367,0.00013,2]
[325245200,1714635041039,-1570.53915014,0.00013,2]
[325245210,1714635043294,-3720.0,0.00011071,2]
[325245213,1714635043305,-906.0,0.00011071,2]
[325245223,1714635043405,-471.441,0.00011071,2]
[325245227,1714635043500,-458.4528,0.00011071,2]
[325245228,1714635043543,-250.11555829,0.00011071,2]
[325245229,1714635043554,-320.57177434,0.00011071,2]
[325245230,1714635043565,-405.71768323,0.00011071,2]
[325245236,1714635046227,-1793.34542828,0.00011071,2]
[325245237,1714635046238,-281.00881241,0.00011071,2]
[325245238,1714635046374,-5953.24724345,0.00011071,2]
[325245239,1714635046384,-308.58611521,0.00012899,2]
[325245240,1714635046394,-370.28017895,0.00012999,2]
[325245241,1714635046403,-405.12132937,0.00012999,2]
[325245242,1714635046412,-155.13373743,0.00012999,2]
[325245243,1714635046421,-38818.82652491,0.00013,2]
[325245244,1714635046433,-802.64257861,0.00013,2]
[325245245,1714635046443,-2799.75699311,0.00013,2]
[325245246,1714635046521,-18100.000001,0.00013,2]
[325245247,1714635046532,-337.08969517,0.00013,2]
[325245258,1714635532106,-533.23,0.0001611,15]
[325245259,1714635720044,151.0,0.00011,2]
[325245260,1714635731848,488.79,0.0001611,15]
[325245261,1714635750871,1000.0,0.00011,3]
[325245262,1714635770249,1000.0,0.00011,3]
[325245264,1714636187551,-210.79954215,0.00011004,2]
[325245265,1714636187573,-155.0,0.00011005,2]
[325245266,1714636187595,-445.16953638,0.00011006,2]
[325245267,1714636187615,-155.0,0.00011006,2]
[325245268,1714636187638,-5210.91464732,0.00011006,2]
[325245269,1714636187661,-5179.34041485,0.00011006,2]
[325245270,1714636187680,-1000.0,0.00011007,2]
[325245271,1714636187702,-405.12132937,0.00011008,2]
[325245272,1714636187722,-150.0,0.00011041,2]
[325245273,1714636228881,448.05,0.0001611,15]
[325245282,1714636232273,-170.12,0.00011061,2]
[325245283,1714636232283,-317.34372397,0.000113,2]
[325245284,1714636232295,-372.81,0.000113,2]
[325245285,1714636232308,-380.03886704,0.000113,2]
[325245286,1714636232326,-1291.57727334,0.000113,2]
[325245287,1714636232335,-1000.0,0.00011621,2]
[325245288,1714636232344,-250.0,0.00011621,2]
[325245289,1714636232353,-22605.14,0.00011684,2]
[325245290,1714636232363,-749.70504623,0.00011698,2]
[325245291,1714636232372,-200.0,0.00011708,2]
[325245292,1714636232382,-232.25,0.00011708,2]
[325245293,1714636232392,-154.27,0.00011942,2]
[325245294,1714636232401,-154.27,0.00012253,2]
[325245295,1714636232410,-154.27,0.00012564,2]
[325245296,1714636232419,-1560.03868352,0.00012686,2]
[325245297,1714636232428,-522.52,0.00012738,2]
[325245298,1714636232438,-166.86,0.00012826,2]
[325245299,1714636232448,-3497.19944605,0.0001284,2]
[325245300,1714636232457,-251.68391057,0.00012868,2]
[325245301,1714636232466,-1808.50189797,0.00012899,2]
[325245302,1714636232475,-10000.0,0.000129,2]
[325245303,1714636232484,-1000.0,0.000129,2]
[325245304,1714636232494,-9406.44635128,0.000129,2]
[325245305,1714636232503,-9196.7505586,0.000129,2]
[325245306,1714636232512,-196.05073833,0.000129,2]
[325245307,1714636232522,-174.84810604,0.000129,2]
[325245309,1714636232531,-308.58611519,0.000129,2]
[325245310,1714636232766,-695.24070941,0.000129,2]
[325245311,1714636232776,-419.48,0.00012925,2]
[325245312,1714636232786,-558.78782629,0.00012986,2]
[325245313,1714636232796,-4346.29727544,0.0001299,2]
[325245314,1714636232805,-180.3482399,0.0001299,2]
[325245315,1714636232814,-180.3482399,0.0001299,2]
[325245316,1714636232823,-180.3482399,0.0001299,2]
[325245317,1714636232833,-173.08,0.0001299,2]
[325245318,1714636232844,-173.08,0.0001299,2]
[325245319,1714636232855,-173.08,0.0001299,2]
[325245320,1714636232865,-173.08,0.0001299,2]
[325245321,1714636232875,-173.08,0.0001299,2]
[325245322,1714636232886,-173.08,0.0001299,2]
[325245323,1714636232896,-173.08,0.0001299,2]
[325245324,1714636232906,-173.08,0.0001299,2]
[325245325,1714636232915,-173.08,0.0001299,2]
[325245326,1714636232923,-173.08,0.0001299,2]
[325245327,1714636232933,-1008.3225052,0.00012995,2]
[325245328,1714636232942,-19538.19920217,0.00012998,2]
[325245329,1714636232951,-216.8826815,0.00012998,2]
[325245330,1714636232960,-194.34268049,0.00012998,2]
[325245331,1714636232970,-155.43940465,0.00012998,2]
[325245332,1714636232979,-194.66538068,0.00012998,2]
[325245333,1714636232988,-161.02195853,0.00012998,2]
[325245334,1714636232997,-263.95861987,0.00012998,2]
[325245335,1714636233006,-334.05587243,0.00012998,2]
[325245336,1714636233016,-155.47114041,0.00012998,2]
[325245337,1714636233026,-155.20632117,0.00012998,2]
[325245338,1714636233037,-156.82541874,0.00012998,2]
[325245339,1714636233047,-237.17351593,0.00012998,2]
[325245340,1714636233057,-155.45749735,0.00012998,2]
[325245341,1714636233066,-155.56189981,0.00012998,2]
[325245342,1714636233075,-2360.978722,0.00012998,2]
[325245343,1714636233085,-14822.85856809,0.00012998,2]
[325245344,1714636233097,-781.07343554,0.00012998,2]
[325245345,1714636233108,-1755.92433775,0.00012998,2]
[325245346,1714636233117,-201.94082262,0.00012998,2]
[325245347,1714636233126,-360.15272987,0.00012998,2]
[325245348,1714636233135,-706.86968625,0.00012998,2]
[325245349,1714636233147,-2327.94533073,0.00012998,2]
[325245350,1714636233158,-329.48874457,0.00012998,2]
[325245351,1714636233167,-156.09690961,0.00012998,2]